Cogmind - Beta 16.1 @@@ ROGUE MODE // 2026.02.20 @ 23:02:35 Player: APerTAS Result: Destroyed by C-40 Crusher with Compactor Performance ------------- Evolutions (4) 2000 Regions Visited (7) 1400 Robots Destroyed (0) 0 Value Destroyed (0) 0 Prototype IDs (1) 20 Alien Tech Used (0) 0 Bonus (1825) 1825 TOTAL SCORE: 5245 Bonus ------- Pacifist 1325 Entered DSFs 500 Cogmind --------- Core Integrity 0/850 Matter 289/300 Energy 100/100 System Corruption 16% Temperature Cool (0) Movement Core (50) Location -6/Waste Parts ------- > --- POWER (9) -------- (None) > --- PROPULSION (2) --- (None) > --- UTILITY (2) ------ (None) > --- WEAPON (2) ------- (None) > --- INVENTORY (5) ---- (None) Peak State ------------ > --- POWER ------------ Angular Momentum Engine Angular Momentum Engine Angular Momentum Engine Angular Momentum Engine > --- PROPULSION ------- Improved Medium Treads > --- UTILITY ---------- (None) > --- WEAPON ----------- (None) > --- INVENTORY -------- (None) [Rating: 25] Favorites ----------- Power Angular Momentum Engine Engine Angular Momentum Engine Propulsion Improved Medium Treads Treads Improved Medium Treads Utility Thermal Defense Suite Device Thermal Defense Suite Weapon None Build | -11 -10 -9 -8 -7 -7 -6 -6 ------- Run | Yrd Mat Mat Mat Fac DSF Fac Was Slots Evolved 8 | . . 2 2 2 . 2 . Power 8 | . . 2 2 2 . 2 . Propulsion . | . . . . . . . . Utility . | . . . . . . . . Weapon . | . . . . . . . . Parts Attached 6 | . . . . . . 6 . Power 4 | . . . . . . 4 . Engine 4 | . . . . . . 4 . Core . | . . . . . . . . Reactor . | . . . . . . . . Propulsion 1 | . . . . . . 1 . Treads 1 | . . . . . . 1 . Leg . | . . . . . . . . Wheel . | . . . . . . . . Hover . | . . . . . . . . Flight . | . . . . . . . . Utility 1 | . . . . . . 1 . Device 1 | . . . . . . 1 . Storage . | . . . . . . . . Processor . | . . . . . . . . Hackware . | . . . . . . . . Protection . | . . . . . . . . Artifact . | . . . . . . . . Weapon . | . . . . . . . . Energy Gun . | . . . . . . . . Energy Cannon . | . . . . . . . . Ballistic Gun . | . . . . . . . . Ballistic Cannon . | . . . . . . . . Launcher . | . . . . . . . . Special Weapon . | . . . . . . . . Impact Weapon . | . . . . . . . . Slashing Weapon . | . . . . . . . . Piercing Weapon . | . . . . . . . . Special Melee Weapon . | . . . . . . . . Unidentified Prototypes 1 | . . . . . . 1 . Parts Lost 3 | . . . . . . 3 . Power 2 | . . . . . . 2 . Propulsion 1 | . . . . . . 1 . Utility . | . . . . . . . . Weapon . | . . . . . . . . Highest Loss Streak 3 | . . . . . . 3 . To Critical Strikes . | . . . . . . . . Average Backups . | . . . . . . . . Power . | . . . . . . . . Propulsion . | . . . . . . . . Utility . | . . . . . . . . Weapon . | . . . . . . . . Tool/Special . | . . . . . . . . Unused Backups . | . . . . . . . . Power . | . . . . . . . . Propulsion . | . . . . . . . . Utility . | . . . . . . . . Weapon . | . . . . . . . . Tool/Special . | . . . . . . . . Average Slot Usage (%) 3 | . . . . . . 9 . Engine 2 | . . . . . . 7 . Peak Build Rating 25 | . . . . . . 25 . Average Rating 3 | . . . . . . 7 . On Entrance . | . . . . . . . . Avg Prop Armor Cover (%) . | . . . . . . . . Naked Turns 424 | . 50 57 84 10 67 135 21 Heaviest Build 52 | . . . . . . 52 . Greatest Support 30 | 3 3 3 3 3 3 30 3 Greatest Overweight (x) 4 | . . . . . . 4 . Average Overweight (x) . | . . . . . . . . Largest Inventory Capacity 5 | 5 5 5 5 5 5 5 5 Average Capacity 5 | 5 5 5 5 5 5 5 5 Most Carried 1 | . . . . . . 1 . Average Carried . | . . . . . . . . Final Capacity 5 | 5 5 5 5 5 5 5 5 Final Carried . | . . . . . . . . Class Distribution -------------------- 80% | Mutant 19% | Generator-Mutant Dominant Class ---------------- Mutant | -10/Materials Mutant | -9/Materials Mutant | -8/Materials Mutant | -7/Factory Mutant | -7/DSF Mutant | -6/Factory Mutant | -6/Waste Resources | -11 -10 -9 -8 -7 -7 -6 -6 ----------- Run | Yrd Mat Mat Mat Fac DSF Fac Was Matter Collected 200 | 200 . . . . . . . Remotely . | . . . . . . . . Salvage Created . | . . . . . . . . Parts . | . . . . . . . . Haulers Intercepted . | . . . . . . . . Recyclers Shooed . | . . . . . . . . Parts Field Recycled . | . . . . . . . . Retrieved Matter . | . . . . . . . . Parts Self-Destructed . | . . . . . . . . Prevented . | . . . . . . . . Parts Restored . | . . . . . . . . Kills | -11 -10 -9 -8 -7 -7 -6 -6 ------- Run | Yrd Mat Mat Mat Fac DSF Fac Was Combat Hostiles Destroyed . | . . . . . . . . Classes Destroyed . | . . . . . . . . Best Kill Streak . | . . . . . . . . Combat Bots Only . | . . . . . . . . Max Kills in Single Turn . | . . . . . . . . Gunslinging . | . . . . . . . . Exploded . | . . . . . . . . Melee . | . . . . . . . . Uniques/NPCs Destroyed . | . . . . . . . . Combat | -11 -10 -9 -8 -7 -7 -6 -6 -------- Run | Yrd Mat Mat Mat Fac DSF Fac Was Hostile Shots Fired 277 | . 34 45 61 . 28 105 4 Missed 102 | . 13 23 30 . 9 27 . Hits 175 | . 21 22 31 . 19 78 4 Melee 13 | . . . . . 9 . 4 Projectile 162 | . 21 22 31 . 10 78 . AOE 1 | . . . . . 1 . . Critical Strikes 8 | . 1 . . . 5 . 2 Damage Taken 2481 | . 184 219 352 . 362 1184 180 Core 1969 | . 184 219 352 . 362 672 180 Absorbed by Shields 47 | . . . . . 47 . . Core Remaining (%) 51 | 100 26 45 36 . 48 . . Volleys Fired . | . . . . . . . . Largest . | . . . . . . . . Hottest . | . . . . . . . . Shots Fired . | . . . . . . . . Gun . | . . . . . . . . Cannon . | . . . . . . . . Launcher . | . . . . . . . . Special . | . . . . . . . . Kinetic . | . . . . . . . . Thermal . | . . . . . . . . Explosive . | . . . . . . . . Electromagnetic . | . . . . . . . . Robot Hit Streak . | . . . . . . . . Robot Miss Streak . | . . . . . . . . Penetration Max . | . . . . . . . . Secondary Targets . | . . . . . . . . Shots Hit Robots . | . . . . . . . . Core Hits 1 | . . . . . . 1 . Critical Kills . | . . . . . . . . Critical Parts Destroyed . | . . . . . . . . Critical Strikes . | . . . . . . . . Melee Attacks . | . . . . . . . . Impact . | . . . . . . . . Slashing . | . . . . . . . . Piercing . | . . . . . . . . Sneak Attacks . | . . . . . . . . Combat Hostiles . | . . . . . . . . Follow-up Attacks . | . . . . . . . . Damage Inflicted 104 | . 12 . . . 11 55 26 Guns . | . . . . . . . . Cannons . | . . . . . . . . Explosions . | . . . . . . . . Melee . | . . . . . . . . Ramming 104 | . 12 . . . 11 55 26 Kinetic . | . . . . . . . . Thermal . | . . . . . . . . Explosive . | . . . . . . . . Electromagnetic . | . . . . . . . . Impact . | . . . . . . . . Slashing . | . . . . . . . . Piercing . | . . . . . . . . Highest Corruption 16 | . 1 . . . 1 6 16 Average Corruption 2 | . 1 . . . 1 2 8 Corruption Purged . | . . . . . . . . Corruption Blocked . | . . . . . . . . Effects 5 | . . . . . 1 3 1 Message Errors 1 | . . . . . . . 1 Heat Flow Errors 2 | . . . . . . 2 . Data Loss (minor) 2 | . . . . . 1 1 . Overload Shots . | . . . . . . . . Overflow Damage . | . . . . . . . . Projectiles . | . . . . . . . . Explosions . | . . . . . . . . Melee . | . . . . . . . . Knockbacks . | . . . . . . . . Impact . | . . . . . . . . Kinetic . | . . . . . . . . Secondary . | . . . . . . . . Self-Inflicted Damage 67 | . 6 . . . 5 45 11 Shots . | . . . . . . . . Rammed 18 | . 2 1 . . 2 3 10 Targets Rammed 18 | . 2 1 . . 2 3 10 Kicked . | . . . . . . . . Crushed . | . . . . . . . . Highest Temperature 203 | . . . . . . 203 . Average Temperature 82 | . . . . . . 82 . Received Heat Transfer 138 | . 12 57 9 . 36 24 . Siege Activations . | . . . . . . . . Martial Activations . | . . . . . . . . Shielding Activations . | . . . . . . . . Robots Disrupted . | . . . . . . . . Combat Hostiles . | . . . . . . . . Robots Corrupted . | . . . . . . . . Combat Hostiles . | . . . . . . . . Parts Fried . | . . . . . . . . Impact Corruptions . | . . . . . . . . Robots Melted . | . . . . . . . . Combat Hostiles . | . . . . . . . . Parts Melted . | . . . . . . . . Heat Transferred . | . . . . . . . . Parts Sabotaged . | . . . . . . . . Parts Stolen . | . . . . . . . . Parts Stripped . | . . . . . . . . Power Chain Reactions 1 | . . . . . . 1 . Alert | -11 -10 -9 -8 -7 -7 -6 -6 ------- Run | Yrd Mat Mat Mat Fac DSF Fac Was Maximum Alert Level . | . . . . . . . . Low Security (%) 100 | 100 100 100 100 100 100 100 100 Level 1 . | . . . . . . . . Level 2 . | . . . . . . . . Level 3 . | . . . . . . . . Level 4 . | . . . . . . . . Level 5 . | . . . . . . . . High Security . | . . . . . . . . Max Security . | . . . . . . . . Peak Influence 62 | . . 35 30 13 41 62 . Initial 21 | . . . 14 13 11 21 . Average 16 | . . 8 8 13 23 27 . Influence Increases 201 | . . 45 45 4 30 77 . Successful Hack 15 | . . . . 4 . 11 . Select Force Hacks 50 | . . . . . . 50 . Destroy Structure 1 | . . . . . . 1 . Partial Spotted 15 | . . 15 . . . . . Lose Combat Pursuer 120 | . . 30 45 . 30 15 . Influence Decreases 201 | . . 10 50 17 6 118 . Entered New Map 64 | . . . 21 17 6 20 . Time Decay 130 | . . 10 29 . . 91 . Lost Part 7 | . . . . . . 7 . Squads Dispatched 6 | . 2 . . . 1 3 . Investigation 2 | . 1 . . . . 1 . Extermination . | . . . . . . . . Reinforcement 4 | . 1 . . . 1 2 . Assault . | . . . . . . . . Garrison . | . . . . . . . . Intercept . | . . . . . . . . Searches Triggered . | . . . . . . . . Construction Impeded . | . . . . . . . . Haulers Reinforced . | . . . . . . . . Active Scanning Responses . | . . . . . . . . Cargo Convoy Interrupts . | . . . . . . . . Stealth | -11 -10 -9 -8 -7 -7 -6 -6 --------- Run | Yrd Mat Mat Mat Fac DSF Fac Was Distress Signals 1 | . . . 1 . . . . Communications Jammed . | . . . . . . . . Distress Signals . | . . . . . . . . Times Spotted 41 | . 6 9 10 . 6 6 4 Peak Tracking Total 7 | . 6 7 6 . 5 5 4 Tactical Retreats 7 | . . 2 2 . 2 1 . Traps | -11 -10 -9 -8 -7 -7 -6 -6 ------- Run | Yrd Mat Mat Mat Fac DSF Fac Was Traps Triggered 5 | . 2 . . . 1 2 . Indirectly . | . . . . . . . . Trap Hack Attempts . | . . . . . . . . Triggered . | . . . . . . . . Disarmed . | . . . . . . . . Reprogrammed . | . . . . . . . . Reused . | . . . . . . . . Traps Extracted . | . . . . . . . . Installed . | . . . . . . . . Triggered . | . . . . . . . . Machines | -11 -10 -9 -8 -7 -7 -6 -6 ---------- Run | Yrd Mat Mat Mat Fac DSF Fac Was Machines Disabled . | . . . . . . . . Max in Single Turn . | . . . . . . . . Garrison Access 1 | . . . . . . 1 . Machines Repaired . | . . . . . . . . Machines Dismantled . | . . . . . . . . Machines Sabotaged . | . . . . . . . . Overloaded Fab Kills . | . . . . . . . . Hacking | -11 -10 -9 -8 -7 -7 -6 -6 --------- Run | Yrd Mat Mat Mat Fac DSF Fac Was Machines Accessed 6 | . . . . 2 . 4 . Terminals 4 | . . . . 2 . 2 . Fabricators 1 | . . . . . . 1 . Repair Stations . | . . . . . . . . Recycling Units . | . . . . . . . . Scanalyzers . | . . . . . . . . Garrison Access 1 | . . . . . . 1 . Total Hacks 11 | . . . . 5 . 6 . Successful 7 | . . . . 3 . 4 . Failed 4 | . . . . 2 . 2 . Catastrophic 1 | . . . . . . 1 . Database Lockouts . | . . . . . . . . Manual 7 | . . . . 2 . 5 . Terminals 9 | . . . . 5 . 4 . Fabricators 1 | . . . . . . 1 . Repair Stations . | . . . . . . . . Recycling Units . | . . . . . . . . Scanalyzers . | . . . . . . . . Garrison Access 1 | . . . . . . 1 . Terminal Hacks 3 | . . . . 2 . 1 . Record 1 | . . . . 1 . . . Open DSF 1 | . . . . 1 . . . Terminal Index 1 | . . . . . . 1 . Fabricator Hacks . | . . . . . . . . Repair Station Hacks . | . . . . . . . . Recycling Unit Hacks . | . . . . . . . . Scanalyzer . | . . . . . . . . Garrison Access Hacks 1 | . . . . . . 1 . Seal Access 1 | . . . . . . 1 . Unauthorized Hacks 3 | . . . . 1 . 2 . Terminals 2 | . . . . 1 . 1 . Botnet 2 | . . . . 1 . 1 . Fabricators 1 | . . . . . . 1 . Overload 1 | . . . . . . 1 . Repair Stations . | . . . . . . . . Recycling Units . | . . . . . . . . Scanalyzers . | . . . . . . . . Garrison Access . | . . . . . . . . Data Cores Recovered . | . . . . . . . . Used . | . . . . . . . . Hacking Detections 4 | . . . . 2 . 2 . Full Trace Events . | . . . . . . . . Feedback Events . | . . . . . . . . Feedback Blocked . | . . . . . . . . Robot Schematics Acquired . | . . . . . . . . Robots Built . | . . . . . . . . Authchips . | . . . . . . . . Time . | . . . . . . . . Total Robot Build Rating . | . . . . . . . . Part Schematics Acquired . | . . . . . . . . Parts Built . | . . . . . . . . Authchips . | . . . . . . . . Time . | . . . . . . . . Total Part Build Rating . | . . . . . . . . Part Studies Acquired . | . . . . . . . . Parts Repaired . | . . . . . . . . Time . | . . . . . . . . Parts Recycled . | . . . . . . . . Recycled Matter . | . . . . . . . . Retrieved Matter . | . . . . . . . . Retrieved Components . | . . . . . . . . Parts Scanalyzed . | . . . . . . . . Part Schematics Acquired . | . . . . . . . . Parts Damaged . | . . . . . . . . Bothacking | -11 -10 -9 -8 -7 -7 -6 -6 ------------ Run | Yrd Mat Mat Mat Fac DSF Fac Was Used RIF Installer . | . . . . . . . . Robots Hacked . | . . . . . . . . Non-combat . | . . . . . . . . Combat . | . . . . . . . . Robot Hacks Applied . | . . . . . . . . Relay Couplers Released . | . . . . . . . . Fabnet Peak Effective % . | . . . . . . . . Robots Rewired . | . . . . . . . . Allies Hacked . | . . . . . . . . Hacks Repelled . | . . . . . . . . Allies | -11 -10 -9 -8 -7 -7 -6 -6 -------- Run | Yrd Mat Mat Mat Fac DSF Fac Was Total Allies . | . . . . . . . . Largest Group . | . . . . . . . . Highest-Rated Group . | . . . . . . . . Highest-Rated Ally . | . . . . . . . . Total Orders . | . . . . . . . . Ally Attacks . | . . . . . . . . Total Damage . | . . . . . . . . Kills . | . . . . . . . . Allies Corrupted . | . . . . . . . . Allies Melted . | . . . . . . . . Intel | -11 -10 -9 -8 -7 -7 -6 -6 ------- Run | Yrd Mat Mat Mat Fac DSF Fac Was Active Infowar (turns) . | . . . . . . . . Robot Analysis Total . | . . . . . . . . Derelict Logs Recovered . | . . . . . . . . Drone Launches . | . . . . . . . . Drone Recoveries . | . . . . . . . . Exploration | -11 -10 -9 -8 -7 -7 -6 -6 ------------- Run | Yrd Mat Mat Mat Fac DSF Fac Was Turns Passed 511 | 13 50 57 84 10 67 209 21 Spaces Moved 808 | 25 96 111 167 20 103 263 23 Core 781 | 25 96 111 167 20 103 236 23 Treads 27 | . . . . . . 27 . Legs . | . . . . . . . . Wheels . | . . . . . . . . Hover . | . . . . . . . . Flight . | . . . . . . . . Fastest Speed 50 | 50 50 50 50 50 50 50 50 Average Speed 56 | 50 50 50 50 50 50 69 50 Slowest Speed 250 | 50 50 50 50 50 50 250 50 Overloaded Moves . | . . . . . . . . Propulsion Burnouts . | . . . . . . . . Robots Hopped . | . . . . . . . . Potential Cave-ins . | . . . . . . . . Cave-ins Triggered . | . . . . . . . . Exploration Rate (%) 24 | 3 28 24 24 1 72 9 34 Regions Visited 7 Branch Regions . Pre-discovered Areas . | . . . . . . . . Known Exits Taken 1 | . . . . 1 . . . Unknown Exits Taken 4 | 1 1 1 1 . . . . Scrap Searched . | . . . . . . . . Spaces Dug . | . . . . . . . . Terrain Destroyed . | . . . . . . . . Melee . | . . . . . . . . Projectile . | . . . . . . . . AOE . | . . . . . . . . Terrain Rammed 4 | . . . . . . 4 . Walls Destroyed 1 | . . . . . . 1 . Machines Disabled . | . . . . . . . . Actions | -11 -10 -9 -8 -7 -7 -6 -6 --------- Run | Yrd Mat Mat Mat Fac DSF Fac Was Total 855 | 24 97 111 166 19 117 288 33 Wait 5 | . . . . . 5 . . Move 802 | 24 95 110 166 19 102 263 23 Hop . | . . . . . . . . Pick Up 1 | . . . . . . 1 . Fast Attach 5 | . . . . . . 5 . Attach 2 | . . . . . . 2 . Detach 1 | . . . . . . 1 . Swap . | . . . . . . . . Drop 1 | . . . . . . 1 . Fire . | . . . . . . . . Melee . | . . . . . . . . Ram 22 | . 2 1 . . 2 7 10 Kick . | . . . . . . . . Crush . | . . . . . . . . Escape Stasis 16 | . . . . . 8 8 . Rewire . | . . . . . . . . Trap . | . . . . . . . . Miscellaneous . | . . . . . . . . Route ------- -11/Scrapyard -10/Materials -9/Materials -8/Materials -7/Factory -7/DSF -6/Factory -6/Waste History --------- Turn | Location | Event 6 | -11/Scrapyard | Discovered new exit (range 12) 14 | -11/Scrapyard | Entered Materials 56 | -10/Materials | Discovered new exit (range 15) 58 | -10/Materials | Core integrity fell below 50% 64 | -10/Materials | Entered another Materials area 64 | -9/Materials | Evolved 2 slots: Power x2 107 | -9/Materials | Core integrity fell below 50% 113 | -9/Materials | Discovered new exit (range 15) 121 | -9/Materials | Entered another Materials area 121 | -8/Materials | Evolved 2 slots: Power x2 198 | -8/Materials | Core integrity fell below 50% 199 | -8/Materials | Discovered new exit (range 13) 205 | -8/Materials | Entered Factory 205 | -7/Factory | Evolved 2 slots: Power x2 215 | -7/Factory | Identified exit to DSF 215 | -7/Factory | Entered DSF 242 | -7/DSF | Additional patrols routed to DSF 276 | -7/DSF | Discovered new exit (range 11) 280 | -7/DSF | Core integrity fell below 50% 282 | -7/DSF | Entered Factory 282 | -6/Factory | Evolved 2 slots: Power x2 305 | -6/Factory | Build established: Mutant 443 | -6/Factory | Core integrity fell below 50% 472 | -6/Factory | Released all parts (2) 491 | -6/Factory | Manually triggered Chute Trap 491 | -6/Factory | Sucked down chute 491 | -6/Factory | Entered Waste 496 | -6/Waste | Spotted C-40 Crusher 499 | -6/Waste | Spotted C-40 Crusher 503 | -6/Waste | Lost 3 parts (2p1n) 505 | -6/Waste | Core integrity fell below 20% 505 | -6/Waste | Spotted C-40 Crusher 506 | -6/Waste | EMP discharged 506 | -6/Waste | System corruption reached 10% 510 | -6/Waste | Spotted C-40 Crusher 512 | -6/Waste | Destroyed by C-40 Crusher with Compactor Last Messages --------------- 00481_ K-01 Serf releases H-66 Slayer into floor hatch. 00482_ Slammed into Recycling Unit. 00482_ Destabilizing: Core damaged (-34). 00482_ Destabilizing: System corrupted (+2). 00483_ Slammed into Recycling Unit. 00490_ Slammed into K-01 Serf. 00491_ System corrupted: Heat flow error (+220). 00491_ Triggered Chute Trap. 00491_ A hatch slides open and sucks a vortex of air into the floor. LOCATION=UNKNOWN GOAL=ESCAPE 00496_ ALERT: Foreign system detected. Charging EMP. 00503_ Slammed into C-40 Crusher. 00506_ System corrupted (+8). 00506_ Slammed into C-40 Crusher. 00508_ Q=WZQ ZM1BYKI3REXTA5RI|U86DHB 00508_ Slammed into C-40 Crusher. 00509_ Destabilizing: System corrupted (+2). 00510_ Slammed into C-40 Crusher. Map ----- +----------------------------------------------------+ | ?????????????????????????????????????????????????? | | ?????????????? ???????????????????????????????? | | ?????????????? ?????????????????????????????? | | ?????????????? #???????????????????????????? | | ????????????? !#???????????????????????????? | | ?????????????? #???????????????????????????? | | ?????????????? #???????????????????????????? | | ?????????????? ????????????????????????????? | | ?????????????? ?????????????????????????????? | | ??????????????# #?????????????????????????????? | | ############??# #?????????????????????????????? | | # #??# #?????????????????????????????? | | # #??# #?????????????????????????????? | | # #### #???????????####??????????????? | | # ! ] #??????????? ??????????????? | | # #?????????? ???????????????? | | # = #?????????? ????????????????? | | # = #????????? ?????????????????? | | # #### #????????? #?????????????????? | | # #??# #???????? #?????????????????? | | # #??# #???????? #?????????????????? | | ############??# #??????? #?????????????????? | | ????????????### ######## ######## ?????????? | | ????????????# ????????? | | ????????????# CC CC ????????? | | ????????????# CC@CC CC ????????? | | ????????????# CC CC ????????? | | ????????????### CC######## #######???????????? | | ??????????????# #??????? #?????????????????? | | ??????????????# #???????? #?????????????????? | | ??????????????# #????????? #?????????????????? | | ??????????????# #?????????? #?????????????????? | | ?????????????? ??????????? #?????????????????? | | ????????????? ????????????#?????????????????? | | ????????????# ??????????????????????????????? | | ????????????# ??????????????????????????????? | | ????????????### ] ??????????????????????????????? | | ??????????????? ??????????????????????????????? | | ????????????????? ???????????????????????????????? | | ?????????????????????????????????????????????????? | | ?????????????????????????????????????????????????? | | ?????????????????????????????????????????????????? | | ?????????????????????????????????????????????????? | | ?????????????????????????????????????????????????? | | ?????????????????????????????????????????????????? | | ?????????????????????????????????????????????????? | | ?????????????????????????????????????????????????? | | ?????????????????????????????????????????????????? | | ?????????????????????????????????????????????????? | | ?????????????????????????????????????????????????? | +----------------------------------------------------+ Best States ------------- Heat Dissipation 37 Energy Generation 57 Energy Capacity 900 Matter Stores 300 Matter Capacity 300 Sight Range 16 Terrain Scan Density 10 Evasion (%) 50 Recoil Reduction 1 Item Schematics ----------------- None Robot Schematics ------------------ None Fabricated ------------ Nothing Repaired ---------- Nothing Studied --------- None Alien Tech Used ----------------- None Achievements -------------- None Challenges ------------ None Game ------ Seed NuclearAerolevActivator Manual? 0 Play Time 00:08:15 Cumulative 56.8 hours Start 2026.02.20 @ 22:54:36 End 2026.02.20 @ 23:02:35 Sessions 1 Manual Loads 0 Difficulty Rogue Special Mode None Game No. 169 Rogue 169 Adventurer 0 Explorer 0 Win Type - Total 0 Types 0/0/0/0/0/0/0/0/0/0 Lore% 61 Gallery% 35 Achievement% 33 Wizard Run 0 Options --------- Layout 0 ASCII 0 Keyboard 0 Movement Arrows Keybinds 0 Fullscreen 1 Font 24/Terminus Map View 64x52 Zoom Use 0% Tactical HUD 1 Map Filters NONE Filters NONE Steam 1 RUN: d0401962-5a1a-4430-a5e3-5442b86319be